[Event "Titled Tuesday Blitz May 25 2021"]
[White "Eynullayev, Atilla"]
[Black "Ghimpu, Samuel-Timotei"]
[WhiteFideId "13413570"]
[BlackFideId "1238175"]
[WhiteElo "1997"]
[BlackElo "2026"]
[Result "0-1"]
[Round "03"]
[TimeControl "180+1"]
[Date "2021.05.25"]
[WhiteClock "0:00:03"]
[BlackClock "0:00:05"]

1. e4 {[%clk 0:03:00]}  e6 {[%clk 0:02:44]} 2. d4 {[%clk 0:03:00]}  d5 {[%clk 0:02:44]} 3. e5 {[%clk 0:03:00]}  c5 {[%clk 0:02:44]} 4. c3 {[%clk 0:03:01]}  Nc6 {[%clk 0:02:45]} 5. Nf3 {[%clk 0:03:01]}  Qb6 {[%clk 0:02:45]} 6. a3 {[%clk 0:03:02]}  c4 {[%clk 0:02:45]} 7. Nbd2 {[%clk 0:03:01]}  Na5 {[%clk 0:02:45]} 8. Be2 {[%clk 0:02:57]}  Bd7 {[%clk 0:02:43]} 9. Qc2 {[%clk 0:02:57]}  Ne7 {[%clk 0:02:37]} 10. Ng5 {[%clk 0:02:57]}  h6 {[%clk 0:02:34]} 11. Nh7 {[%clk 0:02:57]}  O-O-O {[%clk 0:02:11]} 12. Nxf8 {[%clk 0:02:56]}  Rdxf8 {[%clk 0:02:12]} 13. Rb1 {[%clk 0:02:46]}  Qc7 {[%clk 0:02:01]} 14. Nf3 {[%clk 0:02:44]}  f6 {[%clk 0:01:47]} 15. O-O {[%clk 0:02:38]}  Nb3 {[%clk 0:01:36]} 16. Be3 {[%clk 0:02:37]}  Rhg8 {[%clk 0:01:30]} 17. Nd2 {[%clk 0:02:10]}  Be8 {[%clk 0:01:22]} 18. Nxb3 {[%clk 0:02:03]}  Bg6 {[%clk 0:01:21]} 19. Qd2 {[%clk 0:01:51]}  Bxb1 {[%clk 0:01:18]} 20. Rxb1 {[%clk 0:01:52]}  cxb3 {[%clk 0:01:18]} 21. c4 {[%clk 0:01:48]}  Kb8 {[%clk 0:01:09]} 22. Rc1 {[%clk 0:01:37]}  Rc8 {[%clk 0:00:54]} 23. exf6 {[%clk 0:01:37]}  gxf6 {[%clk 0:00:52]} 24. Bxh6 {[%clk 0:01:34]}  Nf5 {[%clk 0:00:46]} 25. Bf4 {[%clk 0:01:04]}  e5 {[%clk 0:00:43]} 26. dxe5 {[%clk 0:01:00]}  fxe5 {[%clk 0:00:44]} 27. Qxd5 {[%clk 0:01:00]}  Rce8 {[%clk 0:00:17]} 28. Bf1 {[%clk 0:00:47]}  exf4 {[%clk 0:00:11]} 29. Qxf5 {[%clk 0:00:47]}  Ref8 {[%clk 0:00:10]} 30. Qe4 {[%clk 0:00:45]}  Rg5 {[%clk 0:00:06]} 31. Rc3 {[%clk 0:00:39]}  Qg7 {[%clk 0:00:06]} 32. Rxb3 {[%clk 0:00:34]}  Qc7 {[%clk 0:00:02]} 33. Rc3 {[%clk 0:00:28]}  Re5 {[%clk 0:00:02]} 34. Qf3 {[%clk 0:00:27]}  Re1 {[%clk 0:00:02]} 35. c5 {[%clk 0:00:26]}  Rd8 {[%clk 0:00:02]} 36. Rd3 {[%clk 0:00:26]}  Rxd3 {[%clk 0:00:02]} 37. Qxd3 {[%clk 0:00:27]}  Qxc5 {[%clk 0:00:02]} 38. Qd8+ {[%clk 0:00:27]}  Qc8 {[%clk 0:00:03]} 39. Qd6+ {[%clk 0:00:27]}  Ka8 {[%clk 0:00:03]} 40. Qxf4 {[%clk 0:00:22]}  a6 {[%clk 0:00:04]} 41. Qd2 {[%clk 0:00:20]}  Rb1 {[%clk 0:00:02]} 42. Qe2 {[%clk 0:00:18]}  Qc1 {[%clk 0:00:02]} 43. Qe8+ {[%clk 0:00:16]}  Ka7 {[%clk 0:00:03]} 44. Qe3+ {[%clk 0:00:14]}  Qxe3 {[%clk 0:00:03]} 45. fxe3 {[%clk 0:00:15]}  Rxb2 {[%clk 0:00:04]} 46. h4 {[%clk 0:00:15]}  Kb6 {[%clk 0:00:03]} 47. h5 {[%clk 0:00:14]}  Kc7 {[%clk 0:00:01]} 48. h6 {[%clk 0:00:13]}  Rb6 {[%clk 0:00:02]} 49. h7 {[%clk 0:00:14]}  Rh6 {[%clk 0:00:03]} 50. Bd3 {[%clk 0:00:14]}  Kd6 {[%clk 0:00:04]} 51. Kf2 {[%clk 0:00:14]}  b5 {[%clk 0:00:04]} 52. Kf3 {[%clk 0:00:14]}  Ke5 {[%clk 0:00:05]} 53. g4 {[%clk 0:00:14]}  a5 {[%clk 0:00:05]} 54. g5 {[%clk 0:00:14]}  Rh1 {[%clk 0:00:05]} 55. g6 {[%clk 0:00:14]}  Kf6 {[%clk 0:00:05]} 56. Bxb5 {[%clk 0:00:10]}  Kxg6 {[%clk 0:00:04]} 57. Bd3+ {[%clk 0:00:10]}  Kf6 {[%clk 0:00:04]} 58. Ke2 {[%clk 0:00:09]}  Kg7 {[%clk 0:00:04]} 59. Kd2 {[%clk 0:00:10]}  Ra1 {[%clk 0:00:05]} 60. Kc3 {[%clk 0:00:08]}  Rxa3+ {[%clk 0:00:05]} 61. Kc4 {[%clk 0:00:09]}  Ra1 {[%clk 0:00:05]} 62. Bc2 {[%clk 0:00:06]}  Rc1 {[%clk 0:00:04]} 63. Kb3 {[%clk 0:00:06]}  Re1 {[%clk 0:00:03]} 64. Ka4 {[%clk 0:00:05]}  Ra1+ {[%clk 0:00:04]} 65. Kb3 {[%clk 0:00:04]}  Re1 {[%clk 0:00:02]} 66. Ka4 {[%clk 0:00:04]}  Re2 {[%clk 0:00:03]} 67. Bf5 {[%clk 0:00:03]}  Ra2+ {[%clk 0:00:02]} 68. Kb3 {[%clk 0:00:03]}  Ra1 {[%clk 0:00:03]} 69. Bc2 {[%clk 0:00:03]}  a4+ {[%clk 0:00:03]} 70. Kb2 {[%clk 0:00:03]}  Re1 {[%clk 0:00:02]} 71. Bxa4 {[%clk 0:00:03]}  Kxh7 {[%clk 0:00:03]} 72. Bc2+ {[%clk 0:00:04]}  Kg7 {[%clk 0:00:03]} 73. e4 {[%clk 0:00:04]}  Kf6 {[%clk 0:00:04]} 74. Kc3 {[%clk 0:00:05]}  Ke5 {[%clk 0:00:05]} 75. Kd3 {[%clk 0:00:06]}  Rh1 {[%clk 0:00:06]} 76. Bb3 {[%clk 0:00:06]}  Rh2 {[%clk 0:00:07]} 77. Kc4 {[%clk 0:00:07]}  Kxe4 {[%clk 0:00:07]} 78. Ba4 {[%clk 0:00:07]}  Ke5 {[%clk 0:00:07]} 79. Bc6 {[%clk 0:00:07]}  Rf2 {[%clk 0:00:07]} 80. Be8 {[%clk 0:00:06]}  Rc2+ {[%clk 0:00:07]} 81. Kb3 {[%clk 0:00:06]}  Rc8 {[%clk 0:00:08]} 82. Bh5 {[%clk 0:00:05]}  Kd4 {[%clk 0:00:07]} 83. Kb2 {[%clk 0:00:05]}  Rh8 {[%clk 0:00:06]} 84. Bg6 {[%clk 0:00:05]}  Rh2+ {[%clk 0:00:07]} 85. Bc2 {[%clk 0:00:05]}  Kc4 {[%clk 0:00:06]} 86. Kb1 {[%clk 0:00:03]}  Kc3 {[%clk 0:00:07]} 87. Bf5 {[%clk 0:00:03]}  Rh1+ {[%clk 0:00:07]} 88. Ka2 {[%clk 0:00:03]}  Rf1 {[%clk 0:00:08]} 89. Be6 {[%clk 0:00:03]}  Rf6 {[%clk 0:00:08]} 90. Bg4 {[%clk 0:00:03]}  Kc2 {[%clk 0:00:07]} 91. Ka3 {[%clk 0:00:01]}  Rf4 {[%clk 0:00:04]} 92. Bd7 {[%clk 0:00:01]}  Kc3 {[%clk 0:00:04]} 93. Ba4 {[%clk 0:00:02]}  Rf1 {[%clk 0:00:04]} 94. Ka2 {[%clk 0:00:02]}  Rf8 {[%clk 0:00:04]} 95. Bd7 {[%clk 0:00:02]}  Ra8+ {[%clk 0:00:03]} 96. Kb1 {[%clk 0:00:03]}  Ra7 {[%clk 0:00:04]} 97. Be6 {[%clk 0:00:03]}  Rg7 {[%clk 0:00:05]} 98. Ka2 {[%clk 0:00:02]}  Rg2+ {[%clk 0:00:04]} 99. Ka3 {[%clk 0:00:03]}  Rg6 {[%clk 0:00:03]} 100. Bb3 {[%clk 0:00:01]}  Ra6+ {[%clk 0:00:03]} 101. Ba4 {[%clk 0:00:02]}  Ra5 {[%clk 0:00:04]} 102. Ka2 {[%clk 0:00:02]}  Rxa4+ {[%clk 0:00:05]} 103. Kb1 {[%clk 0:00:03]} 0-1


[Site "https://www.chess.com"]

[Event "Titled Tuesday Blitz May 25 2021"]
[White "Fernandez, Daniel Howard"]
[Black "Garcia Ramos, Daniel"]
[WhiteFideId "5801605"]
[BlackFideId "32010311"]
[WhiteElo "2777"]
[BlackElo "2578"]
[Result "0-1"]
[Round "03"]
[TimeControl "180+1"]
[Date "2021.05.25"]
[WhiteClock "0:00:16"]
[BlackClock "0:00:08"]

1. e4 {[%clk 0:02:59]}  c6 {[%clk 0:02:59]} 2. d4 {[%clk 0:02:58]}  d5 {[%clk 0:02:59]} 3. exd5 {[%clk 0:02:59]}  cxd5 {[%clk 0:02:58]} 4. Bd3 {[%clk 0:02:58]}  Nc6 {[%clk 0:02:58]} 5. c3 {[%clk 0:02:57]}  Nf6 {[%clk 0:02:59]} 6. Bf4 {[%clk 0:02:56]}  g6 {[%clk 0:02:57]} 7. Nf3 {[%clk 0:02:53]}  Bg7 {[%clk 0:02:57]} 8. O-O {[%clk 0:02:52]}  O-O {[%clk 0:02:58]} 9. Nbd2 {[%clk 0:02:40]}  Bf5 {[%clk 0:02:56]} 10. Bxf5 {[%clk 0:02:40]}  gxf5 {[%clk 0:02:57]} 11. Ne5 {[%clk 0:02:40]}  e6 {[%clk 0:02:55]} 12. Re1 {[%clk 0:02:36]}  Rc8 {[%clk 0:02:50]} 13. Nxc6 {[%clk 0:02:34]}  Rxc6 {[%clk 0:02:48]} 14. Be5 {[%clk 0:02:31]}  Kh8 {[%clk 0:02:33]} 15. Re3 {[%clk 0:02:26]}  Rg8 {[%clk 0:02:29]} 16. Rh3 {[%clk 0:02:23]}  Ng4 {[%clk 0:02:24]} 17. Bxg7+ {[%clk 0:02:14]}  Rxg7 {[%clk 0:02:24]} 18. Nf3 {[%clk 0:02:14]}  Qg8 {[%clk 0:02:16]} 19. Qd2 {[%clk 0:02:10]}  Nf6 {[%clk 0:02:11]} 20. g3 {[%clk 0:02:06]}  Ne4 {[%clk 0:02:11]} 21. Qh6 {[%clk 0:02:02]}  Rg6 {[%clk 0:02:06]} 22. Qe3 {[%clk 0:02:01]}  f6 {[%clk 0:02:05]} 23. Nh4 {[%clk 0:01:47]}  Rg5 {[%clk 0:01:57]} 24. Ng2 {[%clk 0:01:45]}  Rb6 {[%clk 0:01:35]} 25. Rb1 {[%clk 0:01:44]}  a5 {[%clk 0:01:34]} 26. f3 {[%clk 0:01:41]}  Nd6 {[%clk 0:01:31]} 27. Nf4 {[%clk 0:01:41]}  Nc4 {[%clk 0:01:29]} 28. Qe2 {[%clk 0:01:41]}  e5 {[%clk 0:01:23]} 29. Nd3 {[%clk 0:01:24]}  Re6 {[%clk 0:01:08]} 30. b3 {[%clk 0:00:41]}  exd4 {[%clk 0:00:59]} 31. Qf2 {[%clk 0:00:41]}  Re3 {[%clk 0:00:37]} 32. bxc4 {[%clk 0:00:32]}  Rxd3 {[%clk 0:00:36]} 33. Rxb7 {[%clk 0:00:32]}  Rg7 {[%clk 0:00:14]} 34. Rxg7 {[%clk 0:00:22]}  Qxg7 {[%clk 0:00:14]} 35. cxd4 {[%clk 0:00:22]}  dxc4 {[%clk 0:00:14]} 36. Qe2 {[%clk 0:00:21]}  Qd7 {[%clk 0:00:12]} 37. Rh4 {[%clk 0:00:19]}  Rxd4 {[%clk 0:00:09]} 38. Kg2 {[%clk 0:00:16]}  Rd2 {[%clk 0:00:08]} 0-1


[Site "https://www.chess.com"]

[Event "Titled Tuesday Blitz May 25 2021"]
[White "Haitin, Ilja"]
[Black "Mikhailovsky, Vladimir"]
[WhiteFideId "4501764"]
[BlackFideId "34105414"]
[WhiteElo "2182"]
[BlackElo "2308"]
[Result "0-1"]
[Round "03"]
[TimeControl "180+1"]
[Date "2021.05.25"]
[WhiteClock "0:00:02"]
[BlackClock "0:00:09"]

1. e4 {[%clk 0:03:00]}  Nf6 {[%clk 0:02:59]} 2. e5 {[%clk 0:03:00]}  Nd5 {[%clk 0:03:00]} 3. d4 {[%clk 0:03:01]}  d6 {[%clk 0:03:00]} 4. Nf3 {[%clk 0:03:01]}  dxe5 {[%clk 0:03:01]} 5. Nxe5 {[%clk 0:03:01]}  c6 {[%clk 0:03:01]} 6. Be2 {[%clk 0:03:00]}  Nd7 {[%clk 0:03:01]} 7. Nf3 {[%clk 0:02:59]}  N7f6 {[%clk 0:03:01]} 8. O-O {[%clk 0:03:00]}  Bf5 {[%clk 0:03:00]} 9. c4 {[%clk 0:02:55]}  Nb4 {[%clk 0:02:59]} 10. Nh4 {[%clk 0:02:45]}  Bg6 {[%clk 0:02:11]} 11. Nxg6 {[%clk 0:02:41]}  hxg6 {[%clk 0:02:11]} 12. Qb3 {[%clk 0:02:40]}  e6 {[%clk 0:01:50]} 13. a3 {[%clk 0:02:39]}  Qc7 {[%clk 0:01:50]} 14. g3 {[%clk 0:02:37]}  Na6 {[%clk 0:01:47]} 15. Bf4 {[%clk 0:02:32]}  Qc8 {[%clk 0:01:44]} 16. Nc3 {[%clk 0:02:29]}  e5 {[%clk 0:01:09]} 17. Bxe5 {[%clk 0:02:25]}  Qh3 {[%clk 0:01:09]} 18. g4 {[%clk 0:02:16]}  Nxg4 {[%clk 0:00:44]} 19. Bxg4 {[%clk 0:01:59]}  Qxg4+ {[%clk 0:00:43]} 20. Bg3 {[%clk 0:01:59]}  O-O-O {[%clk 0:00:38]} 21. Qa4 {[%clk 0:01:34]}  Bd6 {[%clk 0:00:23]} 22. d5 {[%clk 0:01:26]}  Qh3 {[%clk 0:00:18]} 23. Qc2 {[%clk 0:01:14]}  cxd5 {[%clk 0:00:13]} 24. Nxd5 {[%clk 0:01:10]}  Kb8 {[%clk 0:00:06]} 25. b4 {[%clk 0:01:08]}  Nc7 {[%clk 0:00:05]} 26. Nxc7 {[%clk 0:01:01]}  Bxc7 {[%clk 0:00:05]} 27. Rfd1 {[%clk 0:00:57]}  f5 {[%clk 0:00:05]} 28. Rxd8+ {[%clk 0:00:45]}  Rxd8 {[%clk 0:00:06]} 29. Bxc7+ {[%clk 0:00:45]}  Kxc7 {[%clk 0:00:06]} 30. Qe2 {[%clk 0:00:46]}  Qh4 {[%clk 0:00:05]} 31. Qe5+ {[%clk 0:00:45]}  Kc8 {[%clk 0:00:04]} 32. Qe6+ {[%clk 0:00:43]}  Kb8 {[%clk 0:00:04]} 33. Qe5+ {[%clk 0:00:31]}  Ka8 {[%clk 0:00:04]} 34. c5 {[%clk 0:00:24]}  Qg4+ {[%clk 0:00:04]} 35. Qg3 {[%clk 0:00:24]}  Qh5 {[%clk 0:00:02]} 36. Re1 {[%clk 0:00:22]}  g5 {[%clk 0:00:02]} 37. b5 {[%clk 0:00:17]}  f4 {[%clk 0:00:03]} 38. Qg2 {[%clk 0:00:17]}  f3 {[%clk 0:00:01]} 39. Qg3 {[%clk 0:00:18]}  g4 {[%clk 0:00:02]} 40. c6 {[%clk 0:00:17]}  bxc6 {[%clk 0:00:03]} 41. bxc6 {[%clk 0:00:16]}  Rc8 {[%clk 0:00:03]} 42. c7 {[%clk 0:00:16]}  Qf5 {[%clk 0:00:02]} 43. Rc1 {[%clk 0:00:13]}  Kb7 {[%clk 0:00:02]} 44. Qd6 {[%clk 0:00:12]}  a6 {[%clk 0:00:02]} 45. Qb4+ {[%clk 0:00:09]}  Ka8 {[%clk 0:00:03]} 46. Qc4 {[%clk 0:00:08]}  Qb5 {[%clk 0:00:03]} 47. Qe4+ {[%clk 0:00:07]}  Qb7 {[%clk 0:00:03]} 48. Qxg4 {[%clk 0:00:07]}  Rxc7 {[%clk 0:00:03]} 49. Re1 {[%clk 0:00:04]}  Re7 {[%clk 0:00:03]} 50. Rd1 {[%clk 0:00:03]}  Qb6 {[%clk 0:00:02]} 51. Qxf3+ {[%clk 0:00:02]}  Ka7 {[%clk 0:00:02]} 52. Qg3 {[%clk 0:00:02]}  Rb7 {[%clk 0:00:03]} 53. Qe3 {[%clk 0:00:02]}  Qxe3 {[%clk 0:00:02]} 54. fxe3 {[%clk 0:00:03]}  Rb3 {[%clk 0:00:03]} 55. Rd7+ {[%clk 0:00:03]}  Kb6 {[%clk 0:00:04]} 56. Rxg7 {[%clk 0:00:04]}  Rxa3 {[%clk 0:00:04]} 57. Rg3 {[%clk 0:00:04]}  Rc3 {[%clk 0:00:03]} 58. Kf2 {[%clk 0:00:04]}  a5 {[%clk 0:00:03]} 59. h4 {[%clk 0:00:05]}  a4 {[%clk 0:00:04]} 60. Rg6+ {[%clk 0:00:05]}  Kb5 {[%clk 0:00:04]} 61. Rg5+ {[%clk 0:00:05]}  Kb4 {[%clk 0:00:04]} 62. Rg8 {[%clk 0:00:05]}  a3 {[%clk 0:00:04]} 63. Rb8+ {[%clk 0:00:04]}  Ka4 {[%clk 0:00:03]} 64. Ra8+ {[%clk 0:00:04]}  Kb3 {[%clk 0:00:04]} 65. h5 {[%clk 0:00:04]}  Rc5 {[%clk 0:00:04]} 66. Rb8+ {[%clk 0:00:02]}  Kc2 {[%clk 0:00:04]} 67. Ra8 {[%clk 0:00:01]}  Kb2 {[%clk 0:00:04]} 68. Rb8+ {[%clk 0:00:02]}  Kc1 {[%clk 0:00:04]} 69. Ra8 {[%clk 0:00:01]}  Kb2 {[%clk 0:00:05]} 70. Kf3 {[%clk 0:00:01]}  Ka1 {[%clk 0:00:06]} 71. Kf4 {[%clk 0:00:01]}  Rxh5 {[%clk 0:00:05]} 72. e4 {[%clk 0:00:02]}  Rh3 {[%clk 0:00:05]} 73. Kf5 {[%clk 0:00:01]}  a2 {[%clk 0:00:05]} 74. e5 {[%clk 0:00:02]}  Kb2 {[%clk 0:00:06]} 75. Rb8+ {[%clk 0:00:02]}  Rb3 {[%clk 0:00:06]} 76. Ra8 {[%clk 0:00:01]}  Ra3 {[%clk 0:00:07]} 77. Rb8+ {[%clk 0:00:01]}  Kc2 {[%clk 0:00:07]} 78. Rc8+ {[%clk 0:00:02]}  Kd2 {[%clk 0:00:08]} 79. Rd8+ {[%clk 0:00:02]}  Ke2 {[%clk 0:00:08]} 80. Rh8 {[%clk 0:00:02]}  a1=Q {[%clk 0:00:08]} 81. Rh2+ {[%clk 0:00:02]}  Kf3 {[%clk 0:00:09]} 82. Rh3+ {[%clk 0:00:02]}  Kg2 {[%clk 0:00:09]} 0-1


[Site "https://www.chess.com"]

[Event "Titled Tuesday Blitz May 25 2021"]
[White "Harutjunyan, Gevorg"]
[Black "Vaidya, Atulya"]
[WhiteFideId "13300873"]
[BlackFideId "2047713"]
[WhiteElo "2498"]
[BlackElo "2430"]
[Result "1-0"]
[Round "03"]
[TimeControl "180+1"]
[Date "2021.05.25"]
[WhiteClock "0:02:17"]
[BlackClock "0:01:49"]

1. e4 {[%clk 0:02:53]}  c6 {[%clk 0:02:52]} 2. d4 {[%clk 0:02:52]}  d5 {[%clk 0:02:53]} 3. e5 {[%clk 0:02:53]}  Bf5 {[%clk 0:02:53]} 4. h4 {[%clk 0:02:54]}  h5 {[%clk 0:02:42]} 5. Bg5 {[%clk 0:02:54]}  Qb6 {[%clk 0:02:42]} 6. Bd3 {[%clk 0:02:53]}  Bxd3 {[%clk 0:02:30]} 7. Qxd3 {[%clk 0:02:54]}  e6 {[%clk 0:02:30]} 8. Nd2 {[%clk 0:02:54]}  Nd7 {[%clk 0:02:29]} 9. Ngf3 {[%clk 0:02:51]}  Ne7 {[%clk 0:02:27]} 10. c4 {[%clk 0:02:50]}  Nf5 {[%clk 0:02:25]} 11. O-O {[%clk 0:02:50]}  Bb4 {[%clk 0:02:20]} 12. b3 {[%clk 0:02:51]}  Bxd2 {[%clk 0:02:20]} 13. Bxd2 {[%clk 0:02:45]}  dxc4 {[%clk 0:02:13]} 14. bxc4 {[%clk 0:02:45]}  c5 {[%clk 0:02:13]} 15. d5 {[%clk 0:02:38]}  O-O-O {[%clk 0:02:10]} 16. Rab1 {[%clk 0:02:36]}  Qa6 {[%clk 0:02:05]} 17. Rb5 {[%clk 0:02:35]}  Nd4 {[%clk 0:02:01]} 18. Nxd4 {[%clk 0:02:28]}  cxd4 {[%clk 0:01:56]} 19. Qxd4 {[%clk 0:02:27]}  Kb8 {[%clk 0:01:56]} 20. Rfb1 {[%clk 0:02:26]}  exd5 {[%clk 0:01:53]} 21. Rxb7+ {[%clk 0:02:22]}  Qxb7 {[%clk 0:01:53]} 22. Rxb7+ {[%clk 0:02:22]}  Kxb7 {[%clk 0:01:54]} 23. Qxd5+ {[%clk 0:02:18]}  Kb8 {[%clk 0:01:49]} 24. Bf4 {[%clk 0:02:17]}  Nb6 {[%clk 0:01:49]} 25. e6+ {[%clk 0:02:17]} 1-0


[Site "https://www.chess.com"]

[Event "Titled Tuesday Blitz May 25 2021"]
[White "Henderson de La Fuente, Lance"]
[Black "Sarana, Alexey"]
[WhiteFideId "32096585"]
[BlackFideId "24133795"]
[WhiteElo "2280"]
[BlackElo "2629"]
[Result "0-1"]
[Round "03"]
[TimeControl "180+1"]
[Date "2021.05.25"]
[WhiteClock "0:00:55"]
[BlackClock "0:00:56"]

1. e4 {[%clk 0:02:41]}  c5 {[%clk 0:02:55]} 2. Nc3 {[%clk 0:02:42]}  d6 {[%clk 0:02:55]} 3. Nf3 {[%clk 0:02:42]}  Nf6 {[%clk 0:02:54]} 4. d4 {[%clk 0:02:42]}  cxd4 {[%clk 0:02:55]} 5. Nxd4 {[%clk 0:02:43]}  a6 {[%clk 0:02:56]} 6. h3 {[%clk 0:02:42]}  b5 {[%clk 0:02:55]} 7. g4 {[%clk 0:02:40]}  Bb7 {[%clk 0:02:55]} 8. Bg2 {[%clk 0:02:40]}  Nc6 {[%clk 0:02:55]} 9. Nde2 {[%clk 0:02:39]}  e6 {[%clk 0:02:55]} 10. O-O {[%clk 0:02:39]}  Be7 {[%clk 0:02:56]} 11. Ng3 {[%clk 0:02:39]}  h5 {[%clk 0:02:53]} 12. g5 {[%clk 0:02:38]}  Nd7 {[%clk 0:02:53]} 13. h4 {[%clk 0:02:36]}  Nde5 {[%clk 0:02:48]} 14. Nce2 {[%clk 0:02:30]}  Ng6 {[%clk 0:02:44]} 15. Nf4 {[%clk 0:02:20]}  Nxh4 {[%clk 0:02:43]} 16. Nfxh5 {[%clk 0:02:20]}  g6 {[%clk 0:02:41]} 17. Nf6+ {[%clk 0:02:16]}  Bxf6 {[%clk 0:02:40]} 18. gxf6 {[%clk 0:02:17]}  Qxf6 {[%clk 0:02:37]} 19. Qxd6 {[%clk 0:02:07]}  Rd8 {[%clk 0:02:30]} 20. Qc7 {[%clk 0:02:02]}  Nd4 {[%clk 0:01:35]} 21. f4 {[%clk 0:01:25]}  Nxg2 {[%clk 0:01:31]} 22. Kxg2 {[%clk 0:01:25]}  Qh4 {[%clk 0:01:15]} 23. Rg1 {[%clk 0:01:03]}  Bxe4+ {[%clk 0:01:04]} 24. Kf1 {[%clk 0:00:55]}  Qh3+ {[%clk 0:01:02]} 25. Ke1 {[%clk 0:00:55]}  Nf3+ {[%clk 0:01:01]} 26. Kf2 {[%clk 0:00:55]}  Qh2+ {[%clk 0:00:57]} 27. Rg2 {[%clk 0:00:55]}  Qxg2+ {[%clk 0:00:55]} 28. Kxg2 {[%clk 0:00:55]}  Rh2+ {[%clk 0:00:56]} 29. Kf1 {[%clk 0:00:55]}  Rd1# {[%clk 0:00:56]} 0-1


[Site "https://www.chess.com"]

[Event "Titled Tuesday Blitz May 25 2021"]
[White "Holt, Conrad"]
[Black "Seletsky, Grigory"]
[WhiteFideId "2034387"]
[BlackFideId "14112191"]
[WhiteElo "2586"]
[BlackElo "2492"]
[Result "1-0"]
[Round "03"]
[TimeControl "180+1"]
[Date "2021.05.25"]
[WhiteClock "0:00:17"]
[BlackClock "0:00:04"]

1. d4 {[%clk 0:03:00]}  d6 {[%clk 0:02:45]} 2. Nf3 {[%clk 0:02:59]}  Nf6 {[%clk 0:02:44]} 3. c4 {[%clk 0:02:59]}  g6 {[%clk 0:02:43]} 4. Nc3 {[%clk 0:03:00]}  Bg7 {[%clk 0:02:44]} 5. e4 {[%clk 0:03:00]}  O-O {[%clk 0:02:44]} 6. h3 {[%clk 0:03:01]}  e5 {[%clk 0:02:42]} 7. dxe5 {[%clk 0:03:02]}  dxe5 {[%clk 0:02:42]} 8. Qxd8 {[%clk 0:03:02]}  Rxd8 {[%clk 0:02:42]} 9. Bg5 {[%clk 0:03:03]}  Re8 {[%clk 0:02:39]} 10. Nd5 {[%clk 0:03:03]}  Nxd5 {[%clk 0:02:38]} 11. cxd5 {[%clk 0:03:04]}  c6 {[%clk 0:02:36]} 12. Bc4 {[%clk 0:03:04]}  cxd5 {[%clk 0:02:26]} 13. Bxd5 {[%clk 0:03:05]}  Nc6 {[%clk 0:02:25]} 14. Ke2 {[%clk 0:03:05]}  h6 {[%clk 0:02:18]} 15. Be3 {[%clk 0:02:59]}  Bd7 {[%clk 0:02:13]} 16. Rhd1 {[%clk 0:02:57]}  Red8 {[%clk 0:02:04]} 17. Rac1 {[%clk 0:02:45]}  Be8 {[%clk 0:02:03]} 18. a3 {[%clk 0:02:40]}  Kh7 {[%clk 0:01:56]} 19. b4 {[%clk 0:02:37]}  a6 {[%clk 0:01:40]} 20. Bb6 {[%clk 0:02:36]}  Rdc8 {[%clk 0:01:31]} 21. h4 {[%clk 0:02:21]}  Rab8 {[%clk 0:01:22]} 22. Kf1 {[%clk 0:02:07]}  f5 {[%clk 0:01:15]} 23. h5 {[%clk 0:02:04]}  f4 {[%clk 0:01:10]} 24. hxg6+ {[%clk 0:02:02]}  Kxg6 {[%clk 0:01:09]} 25. Nh4+ {[%clk 0:02:01]}  Kf6 {[%clk 0:01:07]} 26. Nf5 {[%clk 0:01:59]}  Bf8 {[%clk 0:01:07]} 27. Bc5 {[%clk 0:01:58]}  Bxc5 {[%clk 0:00:50]} 28. Rxc5 {[%clk 0:01:57]}  Nd8 {[%clk 0:00:50]} 29. Rxc8 {[%clk 0:01:54]}  Rxc8 {[%clk 0:00:49]} 30. Nd6 {[%clk 0:01:54]}  Bb5+ {[%clk 0:00:44]} 31. Nxb5 {[%clk 0:01:54]}  axb5 {[%clk 0:00:43]} 32. Rd3 {[%clk 0:01:36]}  Rc2 {[%clk 0:00:41]} 33. Bb3 {[%clk 0:01:06]}  Rb2 {[%clk 0:00:33]} 34. Rxd8 {[%clk 0:01:06]}  Rxb3 {[%clk 0:00:32]} 35. Rd6+ {[%clk 0:01:06]}  Ke7 {[%clk 0:00:30]} 36. Rxh6 {[%clk 0:01:00]}  Rxa3 {[%clk 0:00:29]} 37. Rb6 {[%clk 0:00:57]}  Ra1+ {[%clk 0:00:23]} 38. Ke2 {[%clk 0:00:57]}  Ra2+ {[%clk 0:00:23]} 39. Kf3 {[%clk 0:00:57]}  Ra3+ {[%clk 0:00:23]} 40. Kg4 {[%clk 0:00:57]}  Ra2 {[%clk 0:00:23]} 41. Kf5 {[%clk 0:00:45]}  Rxf2 {[%clk 0:00:21]} 42. Kxe5 {[%clk 0:00:45]}  Rxg2 {[%clk 0:00:19]} 43. Rxb7+ {[%clk 0:00:45]}  Kd8 {[%clk 0:00:19]} 44. Kxf4 {[%clk 0:00:45]}  Rf2+ {[%clk 0:00:16]} 45. Ke3 {[%clk 0:00:44]}  Rh2 {[%clk 0:00:17]} 46. Rxb5 {[%clk 0:00:44]}  Kc7 {[%clk 0:00:18]} 47. Kd4 {[%clk 0:00:43]}  Rb2 {[%clk 0:00:16]} 48. Kc3 {[%clk 0:00:38]}  Re2 {[%clk 0:00:15]} 49. Kd4 {[%clk 0:00:34]}  Kc6 {[%clk 0:00:15]} 50. Rh5 {[%clk 0:00:33]}  Rd2+ {[%clk 0:00:14]} 51. Kc3 {[%clk 0:00:31]}  Re2 {[%clk 0:00:12]} 52. Kd3 {[%clk 0:00:31]}  Rb2 {[%clk 0:00:11]} 53. b5+ {[%clk 0:00:30]}  Kd6 {[%clk 0:00:09]} 54. Kc4 {[%clk 0:00:27]}  Rc2+ {[%clk 0:00:09]} 55. Kb4 {[%clk 0:00:25]}  Re2 {[%clk 0:00:09]} 56. Rd5+ {[%clk 0:00:24]}  Kc7 {[%clk 0:00:07]} 57. Rd4 {[%clk 0:00:23]}  Kb6 {[%clk 0:00:06]} 58. Rd6+ {[%clk 0:00:23]}  Kc7 {[%clk 0:00:06]} 59. Re6 {[%clk 0:00:21]}  Kd7 {[%clk 0:00:05]} 60. Re5 {[%clk 0:00:20]}  Kd6 {[%clk 0:00:05]} 61. Rd5+ {[%clk 0:00:21]}  Kc7 {[%clk 0:00:05]} 62. Rc5+ {[%clk 0:00:17]}  Kb6 {[%clk 0:00:05]} 63. Rc6+ {[%clk 0:00:18]}  Kb7 {[%clk 0:00:05]} 64. Rc4 {[%clk 0:00:19]}  Rb2+ {[%clk 0:00:04]} 65. Kc5 {[%clk 0:00:18]}  Rh2 {[%clk 0:00:04]} 66. Kd6 {[%clk 0:00:17]}  Rh5 {[%clk 0:00:04]} 67. e5 {[%clk 0:00:17]}  Kb6 {[%clk 0:00:04]} 68. e6 {[%clk 0:00:17]}  Kxb5 {[%clk 0:00:04]} 69. Re4 {[%clk 0:00:17]} 1-0


[Site "https://www.chess.com"]

[Event "Titled Tuesday Blitz May 25 2021"]
[White "Ibrahimli, Murad"]
[Black "Arias, Juan Cruz"]
[WhiteFideId "13410229"]
[BlackFideId "118540"]
[WhiteElo "2772"]
[BlackElo "2548"]
[Result "1-0"]
[Round "03"]
[TimeControl "180+1"]
[Date "2021.05.25"]
[WhiteClock "0:01:23"]
[BlackClock "0:01:27"]

1. Nf3 {[%clk 0:03:00]}  d6 {[%clk 0:02:54]} 2. d4 {[%clk 0:03:00]}  Nd7 {[%clk 0:02:53]} 3. c4 {[%clk 0:02:58]}  e5 {[%clk 0:02:52]} 4. Nc3 {[%clk 0:02:57]}  Ngf6 {[%clk 0:02:51]} 5. Bg5 {[%clk 0:02:55]}  Be7 {[%clk 0:02:51]} 6. e3 {[%clk 0:02:54]}  O-O {[%clk 0:02:47]} 7. Qc2 {[%clk 0:02:53]}  Re8 {[%clk 0:02:46]} 8. O-O-O {[%clk 0:02:40]}  exd4 {[%clk 0:02:27]} 9. exd4 {[%clk 0:02:38]}  a6 {[%clk 0:02:27]} 10. Bd3 {[%clk 0:02:37]}  Nf8 {[%clk 0:02:27]} 11. Rde1 {[%clk 0:02:20]}  c6 {[%clk 0:02:08]} 12. h3 {[%clk 0:02:04]}  b5 {[%clk 0:02:06]} 13. g4 {[%clk 0:02:05]}  Be6 {[%clk 0:01:49]} 14. d5 {[%clk 0:01:54]}  bxc4 {[%clk 0:01:45]} 15. dxe6 {[%clk 0:01:51]}  cxd3 {[%clk 0:01:45]} 16. exf7+ {[%clk 0:01:52]}  Kxf7 {[%clk 0:01:45]} 17. Qb3+ {[%clk 0:01:30]}  d5 {[%clk 0:01:42]} 18. Ne5+ {[%clk 0:01:30]}  Kg8 {[%clk 0:01:41]} 19. Nxc6 {[%clk 0:01:30]}  Qd6 {[%clk 0:01:33]} 20. Nxe7+ {[%clk 0:01:29]}  Rxe7 {[%clk 0:01:26]} 21. Rxe7 {[%clk 0:01:24]}  Qxe7 {[%clk 0:01:27]} 22. Bxf6 {[%clk 0:01:23]} 1-0


[Site "https://www.chess.com"]